bitfinex-derivatives/quotes_SOLF0:USTF0_20220102
["timestamp","ask_amount","ask_price","bid_price","bid_amount"]
[1641084630979,47.8052,179.17,179.09,1.26261216]
[1641084631176,47.8052,179.17,179.09,19.14131202]
[1641084631978,41.46460033,179.17,179.11,11.88602723]
[1641084632379,41.46460033,179.17,179.1,13.14863939]
[1641084632980,41.46460033,179.17,179.1,11.88602723]
[1641084635279,41.46460033,179.17,179.11,11.88602723]
[1641084635479,41.46460033,179.17,179.11,16.94602723]
[1641084636682,41.46460033,179.17,179.13,27.66479]
[1641084636882,3.94973163,179.2,179.13,27.66479]
[1641084637082,56.20623163,179.2,179.13,27.66479]
[1641084637883,3.94973163,179.19,179.14,1.26261216]
[1641084638584,3.94973163,179.18,179.14,1.26261216]
[1641084642687,3.94973163,179.18,179.12,47.9714]
[1641084643390,3.94973163,179.18,179.13,1.25900325]
[1641084643790,6.94973163,179.18,179.13,1.25900325]
[1641084646294,3.0,179.18,179.12,1.25900325]
[1641084646492,3.0,179.17,179.12,1.25900325]
[1641084647697,3.0,179.18,179.12,1.25900325]
[1641084648401,3.0,179.18,179.1,39.55081723]
[1641084648402,3.0,179.18,179.11,1.25900325]
[1641084648795,3.0,179.17,179.11,1.25900325]
[1641084648995,3.0,179.18,179.11,1.25900325]
[1641084649898,3.94973163,179.16,179.12,11.88602723]
[1641084654001,3.94973163,179.15,179.11,19.15669299]
[1641084654700,3.94973163,179.16,179.11,19.15669299]
[1641084655200,3.0,179.15,179.11,13.14503048]
[1641084655401,3.94973163,179.15,179.11,1.25900325]
[1641084656801,3.94973163,179.15,179.13,3.0]
[1641084657000,3.94973163,179.15,179.13,7.368]
[1641084657201,3.94973163,179.15,179.14,3.0]
[1641084657402,11.88983891,179.19,179.14,3.0]
[1641084657602,11.88983891,179.19,179.17,27.66479]
[1641084657801,11.88983891,179.19,179.17,34.18979]
[1641084658405,50.6594,179.23,179.17,34.18979]
[1641084658603,50.6594,179.23,179.17,37.18979]
[1641084659008,50.6594,179.23,179.17,49.07094339]
[1641084659506,50.6594,179.23,179.21,27.66479]
[1641084659706,11.88983891,179.26,179.21,34.21079]
[1641084660007,11.88983891,179.27,179.21,34.21079]
[1641084662511,51.1207,179.28,179.21,34.21079]
[1641084663608,51.1207,179.28,179.24,27.66479]
[1641084663808,11.88983891,179.29,179.24,27.66479]
[1641084667510,11.88983891,179.28,179.24,27.66479]
[1641084667711,11.88983891,179.28,179.21,34.21079]
[1641084668610,11.88983891,179.26,179.21,34.21079]
[1641084670412,11.88983891,179.25,179.21,34.21079]
[1641084670912,11.88983891,179.26,179.21,34.21079]
[1641084671815,11.88983891,179.24,179.21,34.21079]
[1641084673913,11.88983891,179.24,179.21,27.66479]
[1641084676119,11.88983891,179.26,179.21,27.66479]
[1641084677520,11.88983891,179.25,179.21,27.66479]
[1641084679319,11.88983891,179.25,179.18,27.66479]
[1641084680322,14.88983891,179.25,179.18,27.66479]
[1641084680522,3.0,179.24,179.18,27.66479]
[1641084681823,11.88983891,179.23,179.18,27.66479]
[1641084682024,3.0,179.22,179.18,27.66479]
[1641084682424,11.88983891,179.21,179.18,27.66479]
[1641084683423,11.88983891,179.21,179.16,27.66479]
[1641084683924,11.88983891,179.19,179.16,27.66479]
[1641084687227,11.88983891,179.2,179.16,27.66479]
[1641084687928,3.0,179.17,179.11,11.88115339]
[1641084688126,3.0,179.14,179.11,11.88115339]
[1641084688326,6.681,179.14,179.11,11.88115339]
[1641084688725,9.681,179.14,179.08,11.88115339]
[1641084688925,6.681,179.14,179.08,11.88115339]
[1641084689126,3.0,179.11,179.08,7.43075339]
[1641084689327,3.0,179.13,179.08,1.49935339]
[1641084689725,27.66479,179.09,179.08,1.49935339]
[1641084690125,27.66479,179.09,179.06,6.01296813]
[1641084690326,27.66479,179.09,179.04,6.01296813]
[1641084691427,27.66479,179.09,179.01,6.01296813]
[1641084691626,74.42869,179.15,179.03,27.66479]
[1641084691826,74.42869,179.15,179.03,33.37579]
[1641084692028,77.42869,179.15,179.03,33.37579]
[1641084692526,77.42869,179.15,179.04,6.01296813]
[1641084692926,74.42869,179.15,179.04,6.01296813]
[1641084693128,3.0,179.14,179.04,6.01296813]
[1641084693326,77.42869,179.15,179.04,6.01296813]
[1641084693525,9.84373224,179.14,179.04,6.01296813]
[1641084693727,27.66479,179.11,179.04,6.01296813]
[1641084695332,21.3221166,179.11,179.04,6.01296813]
[1641084697332,9.84499428,179.14,179.04,6.01296813]
[1641084698034,12.5458419,179.14,179.05,3.0]
[1641084698231,12.5458419,179.14,179.04,7.2762465]
[1641084698834,2.70084762,179.14,179.04,48.7239227]
[1641084699837,2.70084762,179.14,179.06,27.66479]
[1641084700236,2.70084762,179.14,179.06,30.66479]
[1641084700940,2.70084762,179.17,179.07,41.98825451]
[1641084701138,2.70084762,179.17,179.07,47.66525451]
[1641084702237,2.70084762,179.17,179.08,1.26327837]
[1641084703740,2.70084762,179.17,179.1,27.66479]
[1641084704639,2.70084762,179.18,179.11,7.2762465]
[1641084704841,2.70084762,179.18,179.11,12.3712465]
[1641084705444,2.70084762,179.18,179.12,1.26327837]
[1641084711848,2.70084762,179.18,179.09,1.26327837]
[1641084714256,2.70084762,179.18,179.09,7.27336014]
[1641084714652,2.70084762,179.18,179.09,10.27336014]
[1641084714854,2.70084762,179.18,179.09,7.27336014]
[1641084715053,2.70084762,179.18,179.09,10.27336014]
[1641084715454,2.70084762,179.18,179.09,7.27336014]
[1641084716656,2.70084762,179.18,179.09,10.27336014]
[1641084717657,3.96297283,179.16,179.1,1.26327837]
[1641084717855,3.96297283,179.16,179.1,6.89927837]
[1641084719056,3.96297283,179.16,179.11,1.26327837]
[1641084719659,3.96297283,179.16,179.12,11.88888896]
[1641084721058,3.96297283,179.15,179.11,13.15216733]
[1641084722758,3.96297283,179.15,179.11,1.26327837]
[1641084723859,3.96297283,179.15,179.12,27.66479]
[1641084724663,3.96297283,179.15,179.13,1.26327837]
[1641084726365,27.66479,179.17,179.13,1.26327837]
[1641084726562,2.70084762,179.16,179.1,1.26327837]
[1641084727562,3.96073874,179.14,179.1,1.26327837]
[1641084729163,3.96073874,179.15,179.1,19.15836224]
[1641084731466,3.96073874,179.16,179.1,19.15836224]
[1641084731668,3.96073874,179.16,179.11,11.88888896]
[1641084732570,3.96073874,179.15,179.1,19.15836224]
[1641084733971,3.96073874,179.15,179.1,13.15216733]
[1641084734271,3.96073874,179.14,179.1,1.26327837]
[1641084735573,3.96073874,179.13,179.1,1.26327837]
[1641084736875,3.96073874,179.12,179.1,1.26327837]
[1641084737473,3.96073874,179.13,179.1,1.26327837]
[1641084739075,3.96073874,179.11,179.1,1.26327837]
[1641084739676,3.96073874,179.11,179.07,11.88888896]
[1641084739874,31.62552874,179.11,179.07,11.88888896]
[1641084740675,3.96073874,179.08,179.04,11.88888896]
[1641084743584,48.36883874,179.1,179.04,11.88888896]
[1641084744684,48.36883874,179.1,179.06,11.88888896]
[1641084744884,3.96073874,179.1,179.06,11.88888896]
[1641084745889,27.66479,179.08,179.06,11.88888896]
[1641084746286,27.66479,179.08,179.05,11.88888896]
[1641084747386,3.96073874,179.09,179.05,11.88888896]
[1641084747787,3.96073874,179.1,179.06,11.88888896]
[1641084748490,3.0,179.09,179.02,47.45737818]
[1641084748690,3.0,179.08,179.02,47.45737818]
[1641084748891,3.0,179.05,179.02,47.45737818]
[1641084749191,3.0,179.07,179.02,47.45737818]
[1641084749392,3.96073874,179.06,179.02,41.44697625]
[1641084749592,3.96073874,179.06,178.98,31.71200801]
[1641084749991,27.66479,179.04,178.98,31.71200801]
[1641084750396,3.96073874,179.03,178.96,4.794]
[1641084751193,47.3073,179.03,178.96,4.794]
[1641084754598,50.3073,179.03,178.96,4.794]
[1641084754798,50.3073,179.03,178.92,49.937482]
[1641084754999,47.3073,179.03,178.92,49.937482]
[1641084755601,50.3073,179.03,178.92,49.937482]
[1641084755799,43.96139016,179.03,178.92,49.937482]
[1641084755998,27.66479,179.01,178.92,49.937482]
[1641084758001,3.96073874,179.0,178.93,6.00800459]
[1641084759001,27.66479,179.01,178.96,31.71200801]
[1641084759201,27.66479,179.01,178.96,37.72000801]
[1641084760302,27.66479,179.01,178.96,6.008]
[1641084764110,27.66479,179.01,178.94,31.71200801]
[1641084766613,3.96073874,179.0,178.93,6.00800459]
[1641084770220,3.96073874,179.0,178.95,27.66479]
[1641084770420,3.96073874,179.0,178.96,3.0]
[1641084770820,3.96073874,179.0,178.98,3.0]
[1641084771020,27.66479,179.08,178.98,3.0]
[1641084771021,3.96073874,179.03,178.98,3.0]
[1641084771220,3.96073874,179.03,178.96,55.35880459]
[1641084771422,3.96073874,179.03,178.98,3.0]
[1641084771722,3.96073874,179.03,178.96,55.35880459]
[1641084771921,3.96073874,179.05,178.98,3.0]
[1641084772122,3.96073874,179.05,178.97,47.4530619]
[1641084772321,3.96073874,179.05,178.99,27.66479]
[1641084772722,3.96073874,179.06,178.99,27.66479]
[1641084773623,3.96073874,179.05,179.0,6.00800459]
[1641084774523,3.96073874,179.05,178.97,47.4530619]
[1641084775122,3.96073874,179.06,178.97,47.4530619]
[1641084775824,3.96073874,179.07,178.99,31.71200801]
[1641084777327,3.96073874,179.07,178.99,37.7200126]
[1641084777929,3.96073874,179.06,178.99,37.7200126]
[1641084778129,3.96073874,179.06,178.99,6.00800459]
[1641084778729,3.96073874,179.06,179.02,11.89601771]
[1641084781733,3.96073874,179.04,179.0,11.89601771]
[1641084783236,3.96073874,179.07,179.03,11.89601771]
[1641084783835,3.96073874,179.08,179.03,11.89601771]
[1641084784638,3.96073874,179.08,179.03,39.56080771]
[1641084785039,3.96073874,179.08,179.04,11.89601771]
[1641084785941,3.96073874,179.05,179.02,1.26154489]
[1641084786845,3.96073874,179.05,179.01,11.89601771]
[1641084787945,3.96073874,179.06,179.02,11.89601771]
[1641084788545,3.96073874,179.06,179.01,11.89601771]
[1641084789145,31.62552874,179.08,179.02,11.89601771]
[1641084790747,31.62552874,179.08,179.03,11.89601771]
[1641084790748,27.66479,179.08,179.03,11.89601771]
[1641084792048,3.96073874,179.09,179.03,11.89601771]
[1641084793248,27.66479,179.08,179.03,11.89601771]
[1641084795349,3.96073874,179.09,179.04,11.89601771]
[1641084795648,3.96073874,179.09,179.04,17.08201771]
[1641084796050,3.96073874,179.09,179.04,20.08201771]
[1641084796251,48.7599,179.11,179.06,11.89601771]
[1641084797352,3.96073874,179.1,179.05,28.92633489]
[1641084798154,3.96073874,179.1,179.06,1.26154489]
[1641084799053,3.96073874,179.11,179.06,1.26154489]
[1641084807055,6.96073874,179.11,179.06,1.26154489]
[1641084807657,31.62552874,179.07,179.02,11.89601771]
[1641084808558,27.66479,179.07,179.01,13.1575626]
[1641084810760,31.62552874,179.07,179.02,11.89601771]
[1641084811660,27.66479,179.07,179.02,13.1575626]
[1641084812359,31.62552874,179.07,179.02,13.1575626]
[1641084813262,3.0,179.04,179.03,11.89601771]
[1641084813460,3.0,179.06,179.03,11.89601771]
[1641084813663,27.66479,179.04,179.03,11.89601771]
[1641084814362,27.66479,179.04,179.03,1.771e-05]
[1641084814562,27.66479,179.04,178.97,1.771e-05]
[1641084814563,30.36645216,179.04,178.97,1.771e-05]
[1641084814763,44.9515,179.03,178.97,1.771e-05]
[1641084815463,48.91322449,179.03,178.97,1.771e-05]
[1641084817166,44.9515,179.03,178.95,5.58160304]
[1641084817367,44.9515,179.03,178.95,37.29361105]
[1641084818067,44.9515,179.03,178.96,1.26154489]
[1641084818267,44.9515,179.03,178.96,7.18054489]
[1641084818466,3.96154717,179.04,178.96,7.18054489]
[1641084819069,27.66479,179.07,178.96,7.18054489]
[1641084819268,3.96606598,179.02,178.96,7.18054489]
[1641084819868,3.96579719,179.03,178.97,1.26154489]
[1641084821171,42.3664,179.06,178.97,1.26154489]
[1641084821672,27.66479,179.04,178.97,1.26154489]
[1641084821870,3.96577243,179.03,178.97,1.26154489]
[1641084822570,42.3664,179.06,178.97,1.26154489]
[1641084823371,3.96575904,179.03,178.97,1.26154489]
[1641084824075,42.3664,179.06,178.97,1.26154489]
[1641084824672,3.96575559,179.03,178.97,1.26154489]
[1641084825272,3.96603895,179.02,178.96,7.26126359]
[1641084826074,2.70531828,179.05,178.96,7.26126359]
[1641084826777,3.96593329,179.04,178.96,48.70438882]
[1641084827478,2.70509337,179.05,178.96,48.70438882]
[1641084828177,42.3664,179.06,178.96,48.70438882]
[1641084828377,3.96583505,179.04,178.96,48.70438882]
[1641084829179,42.3664,179.06,178.96,7.26126359]
[1641084831081,36.02105612,179.06,178.96,7.26126359]
[1641084833485,36.02105612,179.06,178.97,44.9024]
[1641084833886,39.96933133,179.06,178.97,44.9024]
[1641084834890,36.02105612,179.06,178.98,1.26154489]
[1641084836289,39.96933133,179.06,178.98,1.26154489]
[1641084837994,3.94827521,179.03,178.98,1.26154489]
[1641084838192,3.94827521,179.03,178.98,7.2663571]
[1641084839297,3.94827521,179.03,178.98,12.84686995]
[1641084839897,3.94827521,179.03,178.98,40.51165995]
[1641084840897,3.94827521,179.05,178.99,7.2663571]
[1641084841196,3.94827521,179.05,178.99,11.7263571]
[1641084841496,39.96933133,179.06,178.99,11.7263571]
[1641084842404,39.96933133,179.06,179.0,1.26154489]
[1641084843203,3.94827521,179.06,179.0,1.26154489]
[1641084844703,3.94827521,179.06,179.02,11.89630547]
[1641084849311,3.94827521,179.03,178.99,19.16266257]
[1641084850211,3.94827521,179.04,179.0,11.89630547]
[1641084850411,3.94827521,179.04,179.03,27.66479]
[1641084851609,3.94827521,179.04,179.03,28.92633489]
[1641084852111,3.94827521,179.04,179.03,1.26154489]
[1641084853414,3.94827521,179.04,179.0,11.89630547]
[1641084853811,11.21127521,179.04,179.0,11.89630547]
[1641084854011,3.94827521,179.01,178.98,1.26154489]
[1641084854413,27.66479,178.99,178.98,1.26154489]
[1641084854612,27.66479,178.99,178.98,4.489e-05]
[1641084854814,27.66479,178.99,178.92,31.71200801]
[1641084855013,31.61306521,178.99,178.93,6.00315344]
[1641084855713,34.61306521,178.99,178.93,6.00315344]
[1641084855917,31.61306521,178.99,178.93,6.00315344]
[1641084856115,3.94827521,178.96,178.91,6.00315344]
[1641084856916,3.94827521,178.96,178.9,6.00315344]
[1641084857519,3.94827521,178.95,178.9,6.00315344]
[1641084859120,3.0,178.93,178.9,5.344e-05]
[1641084859321,3.0,178.91,178.87,31.71200801]
[1641084859523,3.0,178.88,178.82,25.39513478]
[1641084859721,3.0,178.83,178.82,4.47513478]
[1641084859923,7.87,178.83,178.76,63.57008443]
[1641084860123,3.0,178.81,178.76,32.79008443]
[1641084860323,3.0,178.82,178.76,26.69008443]
[1641084860522,55.32958,178.77,178.69,3.0]
[1641084860722,55.32958,178.77,178.72,3.0]
[1641084861323,55.32958,178.77,178.67,13.55133091]
[1641084861523,3.97181097,178.76,178.66,3.0]
[1641084862323,3.97181097,178.76,178.72,3.0]
[1641084862525,3.97181097,178.76,178.67,27.66479]
[1641084863525,59.30139097,178.77,178.67,27.66479]
[1641084864624,59.30139097,178.77,178.67,33.42279]
[1641084865026,55.32958,178.77,178.67,33.42279]
[1641084865730,55.32958,178.77,178.68,9.7100278]
[1641084866834,55.32958,178.77,178.67,5.758]
[1641084868635,27.66479,178.74,178.67,5.758]
[1641084869838,27.66479,178.74,178.66,3.0]
[1641084870443,27.66479,178.74,178.67,47.65905738]
[1641084870741,27.66479,178.74,178.67,52.73805738]
[1641084871344,27.66479,178.77,178.72,3.0]
[1641084871540,3.97181097,178.8,178.72,4.223]
[1641084871742,3.97181097,178.78,178.72,4.223]
[1641084871941,3.97181097,178.78,178.76,3.0]
[1641084872141,3.97181097,178.78,178.77,3.0]
[1641084872741,3.97181097,178.78,178.76,4.339]
[1641084872941,3.97181097,178.79,178.76,4.339]
[1641084874242,31.63660097,178.82,178.76,4.339]
[1641084877044,27.66479,178.82,178.74,12.7100278]
[1641084877243,27.66479,178.82,178.74,9.7100278]
[1641084877643,27.66479,178.82,178.73,27.66479]
[1641084877844,3.97181097,178.81,178.73,27.66479]
[1641084879550,3.0,178.8,178.73,27.66479]
[1641084879749,3.97181097,178.76,178.73,27.66479]
[1641084880449,12.90587782,178.81,178.73,27.66479]
[1641084880450,27.03381819,178.81,178.73,27.66479]
[1641084880749,3.0,178.8,178.73,27.66479]
[1641084880949,24.03381819,178.81,178.73,27.66479]
[1641084881249,27.03381819,178.81,178.73,27.66479]
[1641084881651,24.03381819,178.81,178.73,27.66479]
[1641084882552,3.97178542,178.74,178.73,27.66479]
[1641084884251,27.66479,178.82,178.73,27.66479]
[1641084884453,30.66479,178.82,178.73,27.66479]
[1641084884650,3.0,178.81,178.73,27.66479]
[1641084884953,27.66479,178.82,178.73,27.66479]
[1641084885758,27.66479,178.82,178.73,31.85179]
[1641084888262,27.66479,178.82,178.73,27.66479]
[1641084889865,3.97178542,178.78,178.74,17.66546809]
[1641084890566,3.97178542,178.78,178.74,11.68644283]
[1641084890765,3.97178542,178.78,178.73,39.35123283]
[1641084891268,3.97178542,178.78,178.74,17.66544354]
[1641084892166,39.35123283,178.82,178.74,17.66544354]
[1641084893867,3.97152411,178.78,178.74,17.66544354]
[1641084894468,39.57928334,178.82,178.74,17.66544354]
[1641084895269,3.97161485,178.76,178.74,1.24922403]
[1641084896069,3.97161485,178.76,178.73,27.66479]
[1641084896070,11.91449334,178.8,178.73,27.66479]
[1641084897169,3.97176324,178.76,178.74,1.24920919]
[1641084897972,3.97185645,178.75,178.73,27.66479]
[1641084898773,12.6298429,178.81,178.73,27.66479]
[1641084899072,11.91543352,178.8,178.74,1.2492044]
[1641084899474,3.97182037,178.75,178.73,27.66479]
[1641084900074,3.97182037,178.75,178.71,11.91484454]
[1641084900672,11.91543352,178.79,178.74,1.24919854]
[1641084901174,55.32958,178.75,178.74,1.24919854]
[1641084901375,55.32958,178.75,178.68,11.91484454]
[1641084902979,3.97266507,178.72,178.68,11.91484454]
[1641084903177,27.66479,178.71,178.68,11.91484454]
[1641084903378,31.63749094,178.71,178.67,11.91484454]
[1641084904378,27.66479,178.71,178.67,11.91484454]
[1641084905481,31.63750443,178.71,178.67,11.91484454]
[1641084906282,27.66479,178.71,178.67,11.91484454]
[1641084907080,3.97325179,178.69,178.65,1.24912808]
[1641084907883,27.66479,178.71,178.65,19.14361179]
[1641084908584,3.97345008,178.68,178.65,3.0]
[1641084908783,3.97345008,178.68,178.64,4.24912808]
[1641084909185,3.97345008,178.68,178.64,1.24912808]
[1641084909383,27.66479,178.71,178.64,1.24912808]
[1641084909584,3.97309962,178.7,178.66,1.24912808]
[1641084910284,31.63799686,178.71,178.67,11.91484454]
[1641084910984,27.66479,178.71,178.67,11.91484454]
[1641084912084,31.63796545,178.71,178.67,11.91484454]
[1641084912884,27.66479,178.71,178.66,11.91484454]
[1641084913584,31.63806029,178.71,178.66,11.91484454]
[1641084914386,27.66479,178.71,178.66,11.91484454]
[1641084915085,31.63803833,178.71,178.67,11.91484454]
[1641084915786,27.66479,178.71,178.66,11.91484454]
[1641084916887,33.71279,178.71,178.66,11.91484454]
[1641084917289,33.71279,178.71,178.69,11.91484454]
[1641084917490,27.35632318,178.71,178.69,11.91484454]
[1641084917989,14.64436231,178.7,178.62,11.92125612]
[1641084918887,3.97391038,178.65,178.61,19.14998542]
[1641084919688,3.97391038,178.65,178.61,11.92125612]
[1641084922991,3.97391038,178.63,178.59,11.92125612]
[1641084923595,27.66479,178.62,178.59,11.92125612]
[1641084924195,31.63870038,178.62,178.58,11.92125612]
[1641084924896,27.66479,178.62,178.6,11.92125612]
[1641084926997,27.66479,178.62,178.59,11.92125612]
[1641084931097,27.66479,178.62,178.58,11.92125612]
[1641084932298,27.66479,178.62,178.59,11.92125612]
[1641084933098,3.97391038,178.61,178.57,11.92125612]
[1641084933797,27.66479,178.62,178.57,11.92125612]
[1641084933798,31.63870038,178.62,178.57,11.92125612]
[1641084933998,31.63870038,178.62,178.57,17.99325612]
[1641084934601,31.63870038,178.62,178.58,1.24912808]
[1641084934899,3.97391038,178.62,178.58,1.24912808]
[1641084935499,3.97391038,178.62,178.59,3.0]
[1641084935699,11.91962058,178.66,178.61,3.0]
[1641084935898,11.91962058,178.66,178.64,3.0]
[1641084936100,11.91962058,178.67,178.64,5.590965]
[1641084936298,11.91962058,178.67,178.61,4.179]
[1641084936898,11.91962058,178.67,178.59,17.51362812]
[1641084937201,14.91962058,178.71,178.63,11.92125612]
[1641084937598,27.66479,178.7,178.63,11.92125612]
[1641084938399,30.66479,178.7,178.63,11.92125612]
[1641084938602,14.64443268,178.69,178.6,11.92125612]
[1641084939400,14.64443268,178.69,178.61,11.92125612]
[1641084940401,2.7248121,178.69,178.63,11.92125612]
[1641084941104,2.7248121,178.69,178.64,11.92125612]
[1641084942205,2.7248121,178.69,178.62,11.92125612]
[1641084945113,2.7248121,178.69,178.63,11.92125612]
[1641084946113,2.7248121,178.69,178.61,18.35225612]
[1641084946314,3.0,178.68,178.61,18.35225612]
[1641084946715,3.0,178.67,178.61,18.35225612]
[1641084946915,5.7248121,178.69,178.61,11.92125612]
[1641084947117,3.0,178.69,178.62,1.24912808]
[1641084947318,3.0,178.68,178.62,1.24912808]
[1641084947715,27.66479,178.66,178.62,1.24912808]
[1641084948820,27.66479,178.66,178.61,11.92125612]
[1641084949020,27.66479,178.66,178.58,19.14998542]
[1641084949819,27.66479,178.66,178.59,11.92125612]
[1641084950022,27.66479,178.66,178.59,16.94125612]
[1641084951222,27.66479,178.66,178.6,1.24912808]
[1641084952826,2.72539933,178.65,178.6,13.1703842]
[1641084953726,2.72539933,178.65,178.6,11.92125612]
[1641084954828,2.72539933,178.65,178.6,14.92125612]
[1641084955230,27.66479,178.66,178.6,14.92125612]
[1641084955429,27.66479,178.66,178.61,13.1703842]
[1641084956131,27.66479,178.7,178.64,11.92125612]
[1641084956330,27.66479,178.7,178.64,16.14325612]
[1641084957233,2.72484854,178.69,178.65,1.24912808]
[1641084957931,2.72484854,178.69,178.64,11.92125612]
[1641084961037,5.72484854,178.69,178.64,11.92125612]
[1641084961234,5.72484854,178.69,178.62,19.14998542]
[1641084961434,3.0,178.67,178.62,19.14998542]
[1641084961638,3.0,178.65,178.62,19.14998542]
[1641084961837,3.0,178.63,178.62,19.14998542]
[1641084962237,55.32958,178.63,178.58,1.24912808]
[1641084963038,55.32958,178.63,178.57,11.92125612]
[1641084963039,14.64446912,178.62,178.54,1.24912808]
[1641084964340,27.66479,178.59,178.54,1.24912808]
[1641084965641,2.72484854,178.58,178.53,11.92125612]
[1641084966141,2.72484854,178.58,178.52,11.92125612]
[1641084967143,2.72484854,178.58,178.53,11.92125612]
[1641084968644,27.66479,178.59,178.53,11.92125612]
[1641084968845,30.66479,178.59,178.53,11.92125612]
[1641084969044,27.66479,178.59,178.53,11.92125612]
[1641084969444,2.72742547,178.58,178.52,11.92125612]
[1641084970345,27.66479,178.59,178.55,11.92125612]
[1641084970549,55.32958,178.59,178.55,11.92125612]
[1641084970745,3.0,178.58,178.55,11.92125612]
[1641084970944,55.32958,178.59,178.55,11.92125612]
[1641084971145,58.32958,178.59,178.55,11.92125612]
[1641084971345,3.0,178.56,178.55,11.92125612]
[1641084971546,3.0,178.56,178.54,1.24912808]
[1641084971746,3.0,178.57,178.54,1.24912808]
[1641084971948,3.0,178.55,178.54,1.24912808]
[1641084972147,3.0,178.57,178.54,1.24912808]
[1641084972348,5.72825528,178.58,178.54,1.24912808]
[1641084972547,27.66479,178.55,178.46,7.22946805]
[1641084974148,27.66479,178.55,178.46,39.0079629]
[1641084974547,55.32958,178.55,178.46,39.0079629]
[1641084975148,3.0,178.54,178.46,39.0079629]
[1641084975347,55.32958,178.55,178.46,39.0079629]
[1641084975647,55.32958,178.55,178.46,31.77849485]
[1641084975852,55.32958,178.55,178.45,27.66479]
[1641084976751,55.32958,178.55,178.46,39.0050926]
[1641084977853,2.72927221,178.54,178.46,7.22659775]
[1641084978652,55.32958,178.55,178.46,7.22659775]
[1641084979352,2.72927301,178.54,178.46,7.22659775]
[1641084980055,55.32958,178.55,178.46,7.22659775]
[1641084980856,2.72958246,178.54,178.46,7.22659775]
[1641084981558,55.32958,178.55,178.46,7.22659775]
[1641084982258,2.72952995,178.54,178.46,7.22659775]
[1641084983161,55.32958,178.55,178.46,7.22659775]
[1641084983963,2.72927316,178.54,178.46,7.22659775]
[1641084984763,55.32958,178.55,178.46,7.22659775]
[1641084985565,2.7294725,178.54,178.46,7.22659775]
[1641084986364,55.32958,178.55,178.46,7.22659775]
[1641084987065,2.72926745,178.54,178.46,7.22659775]
[1641084987870,55.32958,178.55,178.46,7.22659775]
[1641084988270,55.32958,178.55,178.48,3.0]
[1641084988468,55.32958,178.55,178.48,9.589]
[1641084988670,55.32958,178.55,178.48,6.589]
[1641084989068,55.32958,178.55,178.49,1.24778191]
[1641084989269,48.96670372,178.55,178.49,1.24778191]
[1641084989669,48.96670372,178.55,178.49,4.24778191]
[1641084989870,3.0,178.62,178.49,1.24778191]
[1641084990069,50.7889,178.61,178.49,52.83288191]
[1641084990271,50.7889,178.61,178.5,1.24778191]
[1641084990469,3.0,178.6,178.5,1.24778191]
[1641084990671,3.0,178.59,178.5,1.24778191]
[1641084990871,53.7889,178.61,178.5,1.24778191]
[1641084991071,27.66479,178.56,178.5,7.22659775]
[1641084992572,2.72863719,178.55,178.5,1.24778191]
[1641084993973,3.0,178.53,178.5,1.24778191]
[1641084994173,2.72863719,178.55,178.49,1.24778191]
[1641084994372,3.0,178.54,178.49,1.24778191]
[1641084994573,2.72863719,178.55,178.49,1.24778191]
[1641084994773,12.66078282,178.55,178.49,5.873]
[1641084994973,27.66479,178.53,178.49,5.873]
[1641084995975,3.97738258,178.5,178.49,5.873]
[1641084996775,2.72863719,178.52,178.49,5.873]
[1641084996976,12.66227999,178.52,178.45,48.6573]
[1641084997775,3.9779117,178.47,178.46,1.24730267]
[1641084998776,3.9779117,178.48,178.46,1.24730267]
[1641084998979,55.32958,178.47,178.42,7.22536199]
[1641084999680,3.9779117,178.44,178.39,7.22536199]
[1641085000379,3.9779117,178.44,178.4,3.0]
[1641085000579,3.9779117,178.44,178.4,7.387]
[1641085000779,3.9779117,178.44,178.4,4.387]
[1641085001582,27.66479,178.47,178.41,1.24730267]
[1641085002183,27.66479,178.47,178.44,11.93495506]
[1641085002582,27.66479,178.47,178.44,18.18295506]
[1641085002882,3.9779117,178.48,178.44,18.18295506]
[1641085003484,3.9779117,178.48,178.44,21.18295506]
[1641085003683,3.9779117,178.47,178.44,21.18295506]
[1641085003884,3.9779117,178.47,178.45,1.24730267]
[1641085004684,3.9779117,178.51,178.46,11.93495506]
[1641085005285,3.9779117,178.52,178.47,11.93495506]
[1641085005985,3.9779117,178.52,178.48,11.93495506]
[1641085006184,3.9779117,178.52,178.48,17.08395506]
[1641085006885,3.9779117,178.52,178.49,1.24730267]
[1641085007485,3.9779117,178.5,178.49,1.24730267]
[1641085007686,6.9779117,178.5,178.49,1.24730267]
[1641085007885,3.9779117,178.5,178.49,1.24730267]